bitfinex-derivatives/quotes_BNBF0:USTF0_20250529
["timestamp","ask_amount","ask_price","bid_price","bid_amount"]
[1748498492354,0.29291154,682.8,682.49,0.57220882]
[1748498492549,0.29291154,682.8,682.5,0.5723037]
[1748498492753,0.29291154,682.8,682.51,0.57229882]
[1748498492952,0.29291154,682.8,682.52,0.57229882]
[1748498493153,0.29291154,682.8,682.53,0.57229426]
[1748498493354,0.29291154,682.8,682.54,0.57229426]
[1748498493554,0.29291154,682.8,682.55,0.57235146]
[1748498493756,0.29291154,682.8,682.47,0.93100015]
[1748498493950,0.29291154,682.8,682.48,0.5723514]
[1748498494151,0.29291154,682.8,682.49,0.5723514]
[1748498494356,0.29291154,682.8,682.5,0.5723918]
[1748498494552,0.29291154,682.8,682.47,0.93100015]
[1748498494553,0.29291154,682.8,682.51,0.5723918]
[1748498494753,0.29291154,682.8,682.52,0.5723918]
[1748498495057,0.29291154,682.8,682.53,0.57241026]
[1748498495258,0.29291154,682.8,682.54,0.57241026]
[1748498495458,0.29291154,682.8,682.55,0.57241026]
[1748498495656,0.29291154,682.8,682.47,0.93100015]
[1748498495657,0.29291154,682.8,682.56,0.5724035]
[1748498495851,0.29291154,682.8,682.57,0.57240519]
[1748498496055,0.29291154,682.8,682.58,0.57240519]
[1748498496359,0.29291154,682.8,682.47,0.93100015]
[1748498496360,0.29291154,682.8,682.59,0.57241701]
[1748498496554,0.29291154,682.8,682.6,0.57242082]
[1748498496756,0.29291154,682.8,682.61,0.57242082]
[1748498496955,0.29291154,682.8,682.47,0.93100015]
[1748498497154,0.29291154,682.8,682.48,0.57239303]
[1748498497356,0.29291154,682.8,682.49,0.57242151]
[1748498497656,0.29291154,682.8,682.5,0.57243578]
[1748498497959,0.29291154,682.8,682.51,0.57243578]
[1748498498155,0.29291154,682.8,682.52,0.57242838]
[1748498498357,0.29291154,682.8,682.53,0.57242705]
[1748498498560,0.29291154,682.8,682.54,0.57242665]
[1748498498757,0.29291154,682.8,682.47,0.93100015]
[1748498499061,0.29291154,682.8,682.48,0.57245998]
[1748498499260,0.29291154,682.8,682.47,0.93100015]
[1748498499458,0.29291154,682.8,682.48,0.57246194]
[1748498499658,0.29291154,682.8,682.47,0.93100015]
[1748498499863,0.29291154,682.8,682.48,0.57246111]
[1748498500262,0.29291154,682.8,682.47,0.93100015]
[1748498500463,0.29291154,682.8,682.48,0.57246119]
[1748498500763,0.29291154,682.8,682.47,0.93100015]
[1748498500959,0.29291154,682.8,682.48,0.57246085]
[1748498501258,0.29291154,682.8,682.49,0.57245466]
[1748498501463,0.29291154,682.8,682.5,0.57245466]
[1748498501659,0.29291154,682.8,682.47,0.93100015]
[1748498502359,0.29291154,682.8,682.48,0.57239936]
[1748498502557,0.29291154,682.8,682.47,0.93100015]
[1748498503362,0.29291154,682.8,682.48,0.57242371]
[1748498503562,0.29291154,682.8,682.47,0.93100015]
[1748498503764,0.29291154,682.8,682.48,0.57242913]
[1748498504064,0.29291154,682.8,682.47,0.93100015]
[1748498504465,0.29291154,682.8,682.48,0.5724767]
[1748498504764,0.29291154,682.8,682.47,0.93100015]
[1748498505161,0.29291154,682.8,682.48,0.57251731]
[1748498505366,0.29291154,682.8,682.47,0.93100015]
[1748498505759,0.29291154,682.8,682.48,0.57251764]
[1748498505964,0.29291154,682.8,682.47,0.93100015]
[1748498506165,0.29291154,682.8,682.48,0.57256645]
[1748498506467,0.29291154,682.8,682.47,0.93100015]
[1748498508371,0.29291154,682.8,682.48,0.57262402]
[1748498508564,0.29291154,682.8,682.47,0.93100015]
[1748498508765,0.29291154,682.8,682.48,0.57262601]
[1748498509072,0.29291154,682.8,682.47,0.93100015]
[1748498509870,0.29291154,682.8,682.48,0.57261335]
[1748498510068,0.29291154,682.8,682.49,0.57262136]
[1748498510268,0.29291154,682.8,682.47,0.93100015]
[1748498510670,0.29291154,682.8,682.48,0.57262]
[1748498510870,0.29291154,682.8,682.47,0.93100015]
[1748498511071,0.29291154,682.8,682.48,0.57261534]
[1748498511370,0.29291154,682.8,682.49,0.57270631]
[1748498511572,0.29291154,682.8,682.47,0.93100015]
[1748498511767,0.29291154,682.8,682.48,0.57269639]
[1748498511973,0.29291154,682.8,682.47,0.93100015]
[1748498512772,0.29291154,682.8,682.48,0.57280838]
[1748498512970,0.29291154,682.8,682.47,0.93100015]
[1748498514675,0.29291154,682.8,682.48,0.57297371]
[1748498514872,0.29291154,682.8,682.47,0.93100015]
[1748498515576,0.29291154,682.8,682.48,0.57314277]
[1748498515875,0.29291154,682.8,682.49,0.57314567]
[1748498516175,0.29291154,682.8,682.47,0.93100015]
[1748498516374,0.29291154,682.8,682.48,0.57335494]
[1748498516571,0.29291154,682.8,682.47,0.93100015]
[1748498516774,0.29291154,682.8,682.48,0.57335536]
[1748498516973,0.29291154,682.8,682.47,0.93100015]
[1748498517170,0.29291154,682.8,682.48,0.57335858]
[1748498517374,0.29291154,682.8,682.49,0.57335858]
[1748498517572,0.29291154,682.8,682.47,0.93100015]
[1748498517772,0.29291154,682.8,682.48,0.5733602]
[1748498517975,0.29291154,682.8,682.13,0.465095]
[1748498518277,0.29291154,682.8,682.12,0.465095]
[1748498518469,0.29291154,682.8,682.13,0.465095]
[1748498518674,0.29291154,682.8,682.14,0.57364295]
[1748498518874,0.29291154,682.8,682.15,0.57364581]
[1748498519075,0.29291154,682.8,682.13,0.465095]
[1748498519076,0.29291154,682.8,682.16,0.57364345]
[1748498519272,0.29291154,682.8,682.17,0.57364345]
[1748498519476,0.29291154,682.8,682.14,0.465095]
[1748498519679,0.29291154,682.8,682.15,0.57401039]
[1748498519872,0.29291154,682.8,682.14,0.465095]
[1748498520076,0.29291154,682.8,682.15,0.57401183]
[1748498520272,0.29291154,682.8,682.14,0.465095]
[1748498520973,0.29291154,682.8,682.15,0.57400951]
[1748498521177,0.29291154,682.8,682.16,0.57400322]
[1748498521371,0.29291154,682.8,682.15,0.465095]
[1748498521573,0.29291154,682.8,682.22,0.465095]
[1748498521877,0.29291154,682.8,682.23,0.57400545]
[1748498522079,0.29291154,682.8,682.24,0.57400504]
[1748498522273,0.29291154,682.8,682.22,0.465095]
[1748498522773,0.29291154,682.8,682.23,0.57400017]
[1748498522976,0.29291154,682.8,682.03,0.465095]
[1748498523476,0.29291154,682.8,682.04,0.57438714]
[1748498523674,0.29291154,682.8,682.03,0.465095]
[1748498523873,0.29291154,682.8,682.04,0.57438833]
[1748498524076,0.29291154,682.8,682.05,0.57438833]
[1748498524278,0.29291154,682.8,682.06,0.57438688]
[1748498524476,0.29291154,682.8,682.03,0.465095]
[1748498524973,0.29291154,682.8,682.05,0.465095]
[1748498525777,0.29291154,682.8,682.06,0.57510337]
[1748498525975,0.29291154,682.8,682.05,0.465095]
[1748498526374,0.29291154,682.8,682.06,0.57506909]
[1748498526575,0.29291154,682.8,682.06,0.465095]
[1748498526777,0.29291154,682.8,682.07,0.57506619]
[1748498526978,0.29291154,682.8,681.94,0.465095]
[1748498527375,0.29291154,682.8,681.8,0.465095]
[1748498528377,0.29291154,682.8,681.81,1.0401942]
[1748498528575,0.29291154,682.8,681.81,0.465095]
[1748498528877,0.29291154,682.8,681.82,0.57510825]
[1748498529181,0.29291154,682.8,681.81,0.465095]
[1748498529383,0.29291154,682.8,681.82,0.57511252]
[1748498529582,0.29291154,682.8,681.8,0.465095]
[1748498529983,0.29291154,682.8,681.81,0.57513998]
[1748498530181,0.29291154,682.8,681.8,0.465095]
[1748498530380,0.29291154,682.8,681.81,0.465095]
[1748498530783,0.29291154,682.8,681.82,0.57516149]
[1748498530979,0.29291154,682.8,681.81,0.465095]
[1748498531579,0.29291154,682.8,681.82,0.57516213]
[1748498531780,0.29291154,682.8,681.81,0.465095]
[1748498532688,0.29291154,682.8,681.84,0.465095]
[1748498532883,0.29291154,682.8,681.85,0.57518565]
[1748498533187,0.29291154,682.8,681.84,0.465095]
[1748498534386,0.29291154,682.8,681.85,0.57520981]
[1748498534583,0.29291154,682.8,681.86,0.57520981]
[1748498534887,0.29291154,682.8,681.87,0.57520981]
[1748498535087,0.29291154,682.8,681.84,0.465095]
[1748498535787,0.29291154,682.8,681.85,0.57533257]
[1748498535988,0.29291154,682.8,681.86,0.57533257]
[1748498536184,0.29291154,682.8,681.87,0.57533257]
[1748498536383,0.29291154,682.8,681.88,0.5753504]
[1748498536685,0.29291154,682.8,681.91,0.465095]
[1748498536889,0.29291154,682.8,681.92,0.57551678]
[1748498537092,0.29291154,682.8,681.91,0.465095]
[1748498537385,0.29291154,682.8,682.23,0.465095]
[1748498537589,0.29291154,682.8,682.22,0.465095]
[1748498539191,0.29291154,682.8,682.02,0.465095]
[1748498539486,0.29291154,682.8,681.6,0.465095]
[1748498539487,0.29291154,682.8,682.03,0.57551922]
[1748498539693,0.29291154,682.8,682.0,0.465095]
[1748498540791,0.29291154,682.8,682.01,0.57550027]
[1748498540987,0.29291154,682.8,681.07,0.3633402]
[1748498540988,0.29291154,682.8,681.92,0.465095]
[1748498541393,0.29291154,682.8,681.93,0.57551167]
[1748498541688,0.29291154,682.8,681.92,0.465095]
[1748498541891,0.29291154,682.8,681.93,0.57551739]
[1748498542094,0.29291154,682.8,681.87,0.465095]
[1748498542789,0.29291154,682.8,681.92,0.465095]
[1748498542992,0.29291154,682.8,681.93,0.5757641]
[1748498543293,0.29291154,682.8,681.94,0.57580541]
[1748498543489,0.29291154,682.8,681.91,0.465095]
[1748498545888,0.29291154,682.8,681.92,0.57578055]
[1748498546090,0.29291154,682.8,681.93,0.5760191]
[1748498546493,0.29291154,682.8,681.42,0.465095]
[1748498546692,0.29291154,682.8,681.48,0.465095]
[1748498547089,0.29291154,682.8,681.47,0.465095]
[1748498547290,0.29291154,682.8,681.48,0.57609348]
[1748498547491,0.29291154,682.8,681.46,0.465095]
[1748498547790,0.29291154,682.8,681.69,0.465095]
[1748498548096,0.29291154,682.8,681.77,0.465095]
[1748498548396,0.29291154,682.8,681.8,0.465095]
[1748498548690,0.29291154,682.8,681.78,0.57616725]
[1748498548691,0.29291154,682.8,681.77,0.465095]
[1748498548890,0.29291154,682.8,681.78,0.57617128]
[1748498549195,0.29291154,682.8,681.76,0.465095]
[1748498549796,0.29291154,682.8,681.74,0.465095]
[1748498550594,0.29291154,682.8,681.72,0.465095]
[1748498550790,0.29291154,682.8,681.73,0.5762098]
[1748498551090,0.29291154,682.8,681.74,0.57621004]
[1748498551295,0.29291154,682.8,681.72,0.465095]
[1748498551696,0.29291154,682.8,681.73,0.5762042]
[1748498551996,0.29291154,682.8,681.7,0.465095]
[1748498552193,0.29291154,682.8,681.71,0.57623068]
[1748498552398,0.29291154,682.8,681.7,0.465095]
[1748498552692,0.29291154,682.8,681.71,0.57627165]
[1748498552893,0.29291154,682.8,681.7,0.465095]
[1748498554697,0.29291154,682.8,681.71,0.57627128]
[1748498554996,0.29291154,682.8,681.72,0.57627128]
[1748498555197,0.29291154,682.8,681.69,0.465095]
[1748498555998,0.29291154,682.8,681.7,0.5763528]
[1748498556198,0.29291154,682.8,681.69,0.465095]
[1748498556693,0.29291154,682.8,681.7,0.57634694]
[1748498556893,0.29291154,682.8,681.71,0.57630999]
[1748498557093,0.29291154,682.8,681.72,0.57633166]
[1748498557294,0.29291154,682.8,681.68,0.465095]
[1748498557499,0.29291154,682.8,681.69,0.465095]
[1748498557795,0.29291154,682.8,681.7,0.465095]
[1748498557994,0.29291154,682.8,681.87,0.465095]
[1748498558193,0.29291154,682.8,681.88,0.5762933]
[1748498558396,0.29291154,682.8,681.87,0.465095]
[1748498559098,0.29291154,682.8,681.86,0.465095]
[1748498559598,0.29291154,682.8,681.07,0.36243218]
[1748498559599,0.29291154,682.8,681.72,0.465095]
[1748498559794,0.29291154,682.8,681.73,1.04149089]
[1748498559994,0.29291154,682.8,681.72,0.465095]
[1748498560295,0.29291154,682.8,681.73,0.57638857]
[1748498560498,0.29291154,682.8,681.71,0.465095]
[1748498560692,0.29291154,682.8,681.72,0.57640102]
[1748498560898,0.29291154,682.8,681.7,0.465095]
[1748498561597,0.29291154,682.8,681.71,0.57411839]
[1748498561897,0.29291154,682.8,681.69,0.465095]
[1748498562997,0.29291154,682.8,681.7,0.57410184]
[1748498563202,0.29291154,682.8,681.66,0.465095]
[1748498563501,0.29291154,682.8,681.67,0.57409537]
[1748498563799,0.29291154,682.8,681.68,0.57409403]
[1748498564005,0.29291154,682.8,681.69,0.57409872]
[1748498564199,0.29291154,682.8,681.66,0.465095]
[1748498564398,0.29291154,682.8,681.67,0.57403936]
[1748498564603,0.29291154,682.8,681.65,0.465095]
[1748498564900,0.29291154,682.8,681.64,0.465095]
[1748498565104,0.29291154,682.8,681.65,0.57424252]
[1748498565299,0.29291154,682.8,681.66,0.57424707]
[1748498565499,0.29291154,682.8,681.64,0.465095]
[1748498566003,0.29291154,682.8,681.65,0.57423796]
[1748498566204,0.29291154,682.8,681.64,0.465095]
[1748498566399,0.29291154,682.8,681.59,0.465095]
[1748498567603,0.29291154,682.8,681.6,0.465095]
[1748498568612,0.29291154,682.8,681.61,0.57426074]
[1748498568810,0.29291154,682.8,681.6,0.465095]
[1748498569008,0.29291154,682.8,681.56,0.465095]
[1748498569310,0.29291154,682.8,681.54,0.465095]
[1748498569509,0.29291154,682.8,681.58,0.465095]
[1748498570409,0.29291154,682.8,681.2,0.25504876]
[1748498570410,0.29291154,682.8,681.6,0.465095]
[1748498570604,0.29291154,682.8,681.61,0.57425553]
[1748498570805,0.29291154,682.8,681.62,0.57426396]
[1748498571004,0.29291154,682.8,681.6,0.465095]
[1748498571308,0.29291154,682.8,681.61,0.465095]
[1748498571705,0.29291154,682.8,681.62,0.57427813]
[1748498571906,0.29291154,682.8,681.61,0.465095]
[1748498572306,0.29291154,682.8,681.62,0.57432486]
[1748498572606,0.29291154,682.8,681.62,0.465095]
[1748498573109,0.29291154,682.8,681.64,0.465095]
[1748498573306,0.29291154,682.8,681.65,0.57433228]
[1748498573511,0.29291154,682.8,681.59,0.465095]
[1748498573707,0.29291154,682.8,681.6,0.465095]
[1748498574314,0.29291154,682.8,681.59,0.465095]
[1748498574712,0.29291154,682.8,681.61,0.465095]
[1748498574909,0.29291154,682.8,681.62,0.57434815]
[1748498575110,0.29291154,682.8,681.61,0.465095]
[1748498575310,0.29291154,682.8,681.62,0.574298]
[1748498575512,0.29291154,682.8,681.63,0.57430007]
[1748498575711,0.29291154,682.8,681.64,0.57430007]
[1748498575910,0.29291154,682.8,681.65,0.57430007]
[1748498576114,0.29291154,682.8,681.66,0.57430007]
[1748498576318,0.29291154,682.8,681.67,0.57384255]
[1748498576614,0.29291154,682.8,681.68,0.57384255]
[1748498576815,0.29291154,682.8,681.69,0.57384411]
[1748498577012,0.29291154,682.8,681.7,0.57384411]
[1748498577215,0.29291154,682.8,681.57,0.465095]
[1748498577715,0.29291154,682.8,681.59,0.465095]
[1748498577916,0.29291154,682.8,681.6,0.57367214]
[1748498578211,0.29291154,682.8,681.61,0.5737478]
[1748498578410,0.29291154,682.8,681.62,0.5737478]
[1748498578611,0.29291154,682.8,681.63,0.5737478]
[1748498578816,0.29291154,682.8,681.64,0.5737478]
[1748498579017,0.29291154,682.8,681.65,0.5737478]
[1748498579213,0.29291154,682.8,681.66,0.57379683]
[1748498579418,0.29291154,682.8,681.2,0.25504876]
[1748498579419,0.29291154,682.8,681.63,0.465095]
[1748498579620,0.29291154,682.8,681.66,0.465095]
[1748498579816,0.29291154,682.8,681.67,0.57370992]
[1748498580019,0.29291154,682.8,681.68,0.57370992]
[1748498580213,0.29291154,682.8,681.69,0.57370992]
[1748498580418,0.29291154,682.8,681.7,0.57370992]
[1748498580718,0.29291154,682.8,681.72,0.465095]
[1748498580914,0.29291154,682.8,681.73,0.5738525]
[1748498581119,0.29291154,682.8,681.74,0.5738525]
[1748498581316,0.29291154,682.8,681.75,0.57390104]
[1748498581515,0.29291154,682.8,681.76,0.57390095]
[1748498581716,0.29291154,682.8,681.77,0.57390095]
[1748498581916,0.29291154,682.8,681.78,0.57390095]
[1748498582119,0.29291154,682.8,681.79,0.57390095]
[1748498582317,0.29291154,682.8,681.73,0.465095]
[1748498582318,0.29291154,682.8,681.8,0.57390095]
[1748498582521,0.29291154,682.8,681.81,0.57390095]
[1748498582722,0.29291154,682.8,681.74,0.465095]
[1748498582918,0.29291154,682.8,681.75,0.57397478]
[1748498583124,0.29291154,682.8,681.77,0.465095]
[1748498583819,0.29291154,682.8,681.78,0.57397675]
[1748498584020,0.29291154,682.8,681.79,0.57397675]
[1748498584225,0.29291154,682.8,681.8,0.574063]
[1748498584420,0.29291154,682.8,681.81,0.57415951]
[1748498584624,0.29291154,682.8,681.82,0.57415951]
[1748498584925,0.29291154,682.8,681.78,0.465095]
[1748498585125,0.29291154,682.8,681.79,0.57418161]
[1748498585424,0.29291154,682.8,681.8,0.57418161]
[1748498585620,0.29291154,682.8,681.81,0.57418161]
[1748498585823,0.29291154,682.8,681.78,0.465095]
[1748498585824,0.29291154,682.8,681.82,0.57418161]
[1748498586019,0.29291154,682.8,681.83,0.57418161]
[1748498586218,0.29291154,682.8,681.84,0.57418161]
[1748498586423,0.29291154,682.8,681.85,0.57436199]
[1748498586625,0.29291154,682.8,681.86,0.57436199]
[1748498586821,0.29291154,682.8,681.87,0.57435287]
[1748498587120,0.29291154,682.8,681.88,0.57435287]
[1748498587324,0.29291154,682.8,681.89,0.57445134]
[1748498587524,0.29291154,682.8,681.9,0.57445134]
[1748498587726,0.29291154,682.8,681.91,0.57445134]
[1748498587920,0.29291154,682.8,681.92,0.57445134]
[1748498588226,0.29291154,682.8,681.75,0.465095]
[1748498588427,0.29291154,682.8,681.76,1.03954249]
[1748498588624,0.29291154,682.8,681.76,0.465095]
[1748498588826,0.29291154,682.8,681.77,0.5744491]
[1748498589026,0.29291154,682.8,681.76,0.465095]
[1748498589027,0.29291154,682.8,681.78,0.57444758]
[1748498589227,0.29291154,682.8,681.79,0.57444758]
[1748498589425,0.29291154,682.8,681.76,0.465095]
[1748498589426,0.29291154,682.8,681.8,0.57444758]
[1748498589627,0.29291154,682.8,681.76,0.465095]
[1748498589628,0.29291154,682.8,681.81,0.57444758]
[1748498589824,0.29291154,682.8,681.82,0.57444758]
[1748498590128,0.29291154,682.8,681.76,0.465095]
[1748498590129,0.29291154,682.8,681.83,0.57444758]
[1748498590322,0.29291154,682.8,681.84,0.57444758]
[1748498590524,0.29291154,682.8,681.76,0.465095]
[1748498590923,0.29291154,682.8,681.77,0.465095]
[1748498591125,0.29291154,682.8,681.73,0.465095]
[1748498591428,0.29291154,682.8,681.74,0.57454549]
[1748498591628,0.29291154,682.8,681.73,0.465095]
[1748498591825,0.29291154,682.8,681.74,0.57454528]
[1748498592029,0.29291154,682.8,681.72,0.465095]
[1748498592630,0.29291154,682.8,681.73,0.465095]
[1748498593130,0.29291154,682.8,681.74,0.57454721]
[1748498593330,0.29291154,682.8,681.75,0.57454807]
[1748498593531,0.29291154,682.8,681.76,0.57454887]
[1748498593735,0.29291154,682.8,681.74,0.465095]
[1748498593928,0.29291154,682.8,681.75,0.57454878]
[1748498594127,0.29291154,682.8,681.74,0.465095]
[1748498594433,0.29291154,682.8,681.75,0.57454881]
[1748498594732,0.29291154,682.8,681.75,0.465095]
[1748498594932,0.29291154,682.8,681.76,0.57455078]
[1748498595133,0.29291154,682.8,681.76,0.465095]
[1748498595529,0.29291154,682.8,681.77,0.57481855]
[1748498595833,0.29291154,682.8,681.78,0.57481855]
[1748498596034,0.29291154,682.8,681.79,0.57482053]
[1748498596233,0.29291154,682.8,681.76,0.465095]
[1748498596533,0.29291154,682.8,681.2,0.25504876]
[1748498596534,0.29291154,682.8,681.86,0.465095]
[1748498597737,0.29291154,682.8,681.87,0.57533173]
[1748498598033,0.29291154,682.8,681.88,0.57532808]
[1748498598229,0.29291154,682.8,681.89,0.57532921]
[1748498598534,0.29291154,682.8,681.86,0.465095]
[1748498598935,0.29291154,682.8,681.89,0.465095]
[1748498600131,0.29291154,682.8,681.9,0.57709992]
[1748498600331,0.29291154,682.8,681.91,0.57709842]
[1748498600537,0.29291154,682.8,681.88,0.465095]
[1748498600936,0.29291154,682.8,681.79,0.465095]
[1748498601139,0.29291154,682.8,681.8,0.5770995]
[1748498601337,0.29291154,682.8,681.81,0.57709986]
[1748498601536,0.29291154,682.8,681.82,0.57709986]
[1748498601740,0.29291154,682.8,681.8,0.465095]
[1748498602038,0.29291154,682.8,681.81,0.57709945]
[1748498602240,0.29291154,682.8,681.8,0.465095]
[1748498603436,0.29291154,682.8,681.81,0.57710598]
[1748498603742,0.29291154,682.8,681.78,0.465095]
[1748498604641,0.29291154,682.8,681.79,0.57710814]
[1748498604834,0.29291154,682.8,681.8,0.57710799]
[1748498605039,0.29291154,682.8,681.79,0.465095]
[1748498605237,0.29291154,682.8,681.8,0.5771082]
[1748498605536,0.29291154,682.8,681.79,0.465095]
[1748498606339,0.29291154,682.8,681.8,0.57710719]
[1748498606536,0.29291154,682.8,681.81,0.57710719]
[1748498607040,0.29291154,682.8,681.79,0.465095]
[1748498607337,0.29291154,682.8,681.78,0.465095]
[1748498608143,0.29291154,682.8,681.79,0.57710217]
[1748498608442,0.29291154,682.8,681.77,0.465095]
[1748498608641,0.29291154,682.8,681.8,0.57711292]
[1748498608841,0.29291154,682.8,681.77,0.465095]
[1748498609444,0.29291154,682.8,681.78,0.57710777]
[1748498609642,0.29291154,682.8,681.77,0.465095]
[1748498610438,0.29291154,682.8,681.78,0.57710289]
[1748498610642,0.29291154,682.8,681.79,0.57709735]
[1748498610839,0.29291154,682.8,681.88,0.465095]
[1748498611038,0.29291154,682.8,681.89,0.57709604]
[1748498611238,0.29291154,682.8,681.9,0.57709653]
[1748498611437,0.29291154,682.8,681.91,0.57709653]
[1748498611739,0.29291154,682.8,681.9,0.465095]
[1748498612143,0.29291154,682.8,681.91,1.04219352]
[1748498612347,0.29291154,682.8,681.92,1.04219352]
[1748498612539,0.29291154,682.8,681.93,0.57709852]
[1748498612739,0.29291154,682.8,681.94,0.57709852]
[1748498612940,0.29291154,682.8,681.93,0.465095]
[1748498613140,0.29291154,682.8,681.94,0.57702795]
[1748498613339,0.29291154,682.8,681.95,0.57702743]
[1748498613540,0.29291154,682.8,681.98,0.465095]
[1748498613742,0.29291154,682.8,681.99,0.57702266]
[1748498613941,0.29291154,682.8,682.0,0.57702266]
[1748498614246,0.29291154,682.8,682.01,0.57702266]
[1748498614442,0.29291154,682.8,682.02,0.57702102]
[1748498614645,0.29291154,682.8,682.03,0.57702102]
[1748498614844,0.29291154,682.8,681.98,0.465095]
[1748498614845,0.29291154,682.8,682.04,0.57701925]
[1748498615141,0.29291154,682.8,682.05,0.57697678]
[1748498615346,0.29291154,682.8,682.06,0.57697614]
[1748498615548,0.29291154,682.8,682.07,0.57698529]
[1748498615744,0.29291154,682.8,682.08,0.57698529]
[1748498616045,0.29291154,682.8,682.09,0.57698035]
[1748498616245,0.29291154,682.8,682.1,0.57698035]
[1748498616545,0.29291154,682.8,682.11,0.57698035]
[1748498616746,0.29291154,682.8,682.12,0.57698035]
[1748498616947,0.29291154,682.8,682.13,0.57697375]
[1748498617247,0.29291154,682.8,681.49,0.465095]
[1748498617442,0.29291154,682.8,681.48,0.465095]
[1748498617642,0.29291154,682.8,681.49,0.57740825]
[1748498617843,0.29291154,682.8,681.5,0.57740825]
[1748498618044,0.29291154,682.8,681.51,0.57740825]
[1748498618341,0.29291154,682.8,681.52,0.57740825]
[1748498618544,0.29291154,682.8,681.53,0.57626457]
[1748498618741,0.29291154,682.8,681.54,0.57626457]
[1748498618944,0.29291154,682.8,681.55,0.57626457]
[1748498619145,0.29291154,682.8,680.33,0.558114]
[1748498619146,0.29291154,682.8,681.56,0.57580623]
[1748498619342,0.29291154,682.8,681.57,0.57580623]
[1748498619541,0.29291154,682.8,681.58,0.57580402]
[1748498619746,0.29291154,682.8,681.59,0.57580402]
[1748498619946,0.29291154,682.8,681.6,0.57580402]
[1748498620246,0.29291154,682.8,681.61,0.57580402]
[1748498620549,0.29291154,682.8,681.62,0.57580402]
[1748498620745,0.29291154,682.8,681.34,0.465095]
[1748498620746,0.29291154,682.8,681.63,0.57580402]
[1748498620946,0.29291154,682.8,681.64,0.57532189]
[1748498621143,0.29291154,682.8,681.65,0.57532189]
[1748498621447,0.29291154,682.8,680.25,0.558114]
[1748498621448,0.29291154,682.8,681.66,0.57526828]
[1748498621642,0.29291154,682.8,681.67,0.57526581]
[1748498621845,0.29291154,682.8,681.68,0.57526581]
[1748498622045,0.29291154,682.8,681.29,0.465095]
[1748498622443,0.29291154,682.8,681.35,0.465095]
[1748498623444,0.29291154,682.8,681.32,0.465095]
[1748498624449,0.29291154,682.8,681.27,0.465095]
[1748498624649,0.29291154,682.8,681.26,0.465095]
[1748498624849,0.29291154,682.8,681.27,0.5751654]
[1748498625045,0.29291154,682.8,681.28,0.465095]
[1748498625249,0.29291154,682.8,681.27,0.465095]
[1748498625450,0.29291154,682.8,681.28,0.57516604]
[1748498625650,0.29291154,682.8,681.29,0.57516604]
[1748498625849,0.29291154,682.8,681.3,0.57516604]
[1748498626045,0.29291154,682.8,681.31,0.57516604]
[1748498626250,0.29291154,682.8,681.32,0.57516604]
[1748498626551,0.29291154,682.8,681.33,0.57507885]
[1748498626750,0.29291154,682.8,681.34,0.57507885]
[1748498626946,0.29291154,682.8,681.35,0.57507885]
[1748498627150,0.29291154,682.8,681.18,0.465095]
[1748498627151,0.29291154,682.8,681.36,0.57507885]
[1748498627351,0.29291154,682.8,680.66,0.465095]
[1748498627352,0.29291154,682.8,681.37,0.57507878]
[1748498627555,0.29291154,682.8,681.38,0.57508027]
[1748498627851,0.29291154,682.8,681.17,0.465095]
[1748498627852,0.29291154,682.8,681.39,0.57507912]
[1748498628048,0.29291154,682.8,681.4,0.57508061]
[1748498628247,0.29291154,682.8,681.17,0.465095]
[1748498628454,0.29291154,682.8,681.21,0.57502097]
[1748498628653,0.29291154,682.8,681.22,0.57502097]
[1748498628853,0.29291154,682.8,681.23,0.57502332]
[1748498629053,0.29291154,682.8,681.24,0.57502332]
[1748498629352,0.29291154,682.8,681.25,0.57501998]
[1748498629553,0.29291154,682.8,681.26,0.57501892]
[1748498629749,0.29291154,682.8,681.27,0.57501892]
[1748498629949,0.29291154,682.8,681.28,0.57501892]
[1748498630153,0.29291154,682.8,681.29,0.57501892]
[1748498630352,0.29291154,682.8,681.3,0.5749827]
[1748498630552,0.29291154,682.8,681.31,0.5749827]
[1748498630753,0.29291154,682.8,681.32,0.5749827]
[1748498630952,0.29291154,682.8,681.33,0.5749827]
[1748498631253,0.29291154,682.8,681.34,0.57498318]
[1748498631454,0.29291154,682.8,681.35,0.57498358]
[1748498631651,0.29291154,682.8,681.36,0.57498112]
[1748498631954,0.29291154,682.8,681.15,0.465095]
[1748498632854,0.29291154,682.8,681.21,0.5749772]
[1748498633153,0.29291154,682.8,681.15,0.465095]
[1748498633353,0.29291154,682.8,681.16,0.465095]
[1748498633550,0.29291154,682.8,681.21,0.57498145]
[1748498633750,0.29291154,682.8,681.22,0.57498301]
[1748498633948,0.29291154,682.8,681.17,0.465095]
[1748498633949,0.29291154,682.8,681.23,0.57498222]
[1748498634150,0.29291154,682.8,681.24,0.57498189]
[1748498634352,0.29291154,682.8,681.25,1.04007669]
[1748498634657,0.29291154,682.8,681.26,1.04007499]
[1748498634852,0.29291154,682.8,681.27,0.57497999]
[1748498635051,0.29291154,682.8,681.28,0.57497999]
[1748498635252,0.29291154,682.8,680.18,0.558114]